[Event "*** Titled Tuesday Blitz"]
[Site "Chess.com"]
[Date "2019.07.02"]
[Round "8"]
[White "M1711"]
[Black "maximnovik"]
[Result "0-1"]
[WhiteElo "2493"]
[BlackElo "2481"]
[TimeControl "180+2"]
[EndTime "14:49:42 PDT"]
[Termination "maximnovik won on time"]

1. e4 {[%clk 0:03:01.9]} 1... c5 {[%clk 0:02:57.3]} 2. Nf3 {[%clk 0:03:01.9]}
2... e6 {[%clk 0:02:58.1]} 3. d4 {[%clk 0:03:02.9]} 3... cxd4 {[%clk 0:02:59.6]}
4. Bg5 {[%clk 0:03:03.9]} 4... Qb6 {[%clk 0:02:57.1]} 5. Qxd4 {[%clk 0:03:04.6]}
5... Qxd4 {[%clk 0:02:44.5]} 6. Nxd4 {[%clk 0:03:06.5]} 6... Nc6 {[%clk
0:02:45.9]} 7. Nb5 {[%clk 0:02:59.9]} 7... Bb4+ {[%clk 0:02:27.3]} 8. c3 {[%clk
0:02:56.3]} 8... Ba5 {[%clk 0:02:27.7]} 9. Nd6+ {[%clk 0:02:54.7]} 9... Kf8
{[%clk 0:02:28.3]} 10. Nd2 {[%clk 0:02:50.6]} 10... Bc7 {[%clk 0:02:26.6]} 11.
Nb5 {[%clk 0:02:45.1]} 11... Bb8 {[%clk 0:02:19.5]} 12. Nc4 {[%clk 0:02:37.5]}
12... d5 {[%clk 0:02:19.1]} 13. exd5 {[%clk 0:02:19]} 13... exd5 {[%clk
0:02:19.7]} 14. Ne3 {[%clk 0:02:20.5]} 14... a6 {[%clk 0:02:12.1]} 15. Na3
{[%clk 0:02:14.3]} 15... Be6 {[%clk 0:02:08.4]} 16. O-O-O {[%clk 0:02:08.7]}
16... f6 {[%clk 0:01:59.6]} 17. Bh4 {[%clk 0:02:07.7]} 17... Nge7 {[%clk
0:02:01]} 18. Kb1 {[%clk 0:01:50.8]} 18... Kf7 {[%clk 0:01:59.9]} 19. Be2 {[%clk
0:01:50.1]} 19... Rd8 {[%clk 0:01:47.3]} 20. Nac2 {[%clk 0:01:49.3]} 20... Ba7
{[%clk 0:01:45.9]} 21. Bf3 {[%clk 0:01:45.2]} 21... Rac8 {[%clk 0:01:37.8]} 22.
Rhe1 {[%clk 0:01:41.3]} 22... Ne5 {[%clk 0:01:17]} 23. Be2 {[%clk 0:01:37.7]}
23... Nf5 {[%clk 0:01:16.9]} 24. Nxf5 {[%clk 0:01:30.7]} 24... Bxf5 {[%clk
0:01:17.8]} 25. Bg3 {[%clk 0:01:00.7]} 25... d4 {[%clk 0:01:13.1]} 26. Bxe5
{[%clk 0:00:46.7]} 26... fxe5 {[%clk 0:00:55.2]} 27. Bd3 {[%clk 0:00:47.8]}
27... Bxd3 {[%clk 0:00:50.5]} 28. Rxd3 {[%clk 0:00:49.7]} 28... dxc3 {[%clk
0:00:51.2]} 29. Rxd8 {[%clk 0:00:40.5]} 29... Rxd8 {[%clk 0:00:51.4]} 30. bxc3
{[%clk 0:00:42.4]} 30... Rd2 {[%clk 0:00:41.9]} 31. Rxe5 {[%clk 0:00:41.2]}
31... Rxf2 {[%clk 0:00:42.3]} 32. Rg5 {[%clk 0:00:40.6]} 32... Kf6 {[%clk
0:00:32.6]} 33. Rg3 {[%clk 0:00:35.7]} 33... Bb8 {[%clk 0:00:32.8]} 34. Rh3
{[%clk 0:00:33.1]} 34... h6 {[%clk 0:00:32.2]} 35. g3 {[%clk 0:00:21.3]} 35...
Be5 {[%clk 0:00:28.9]} 36. Ne3 {[%clk 0:00:16]} 36... Ke6 {[%clk 0:00:24.5]} 37.
c4 {[%clk 0:00:05.8]} 37... Bd4 {[%clk 0:00:22]} 38. Nd5 {[%clk 0:00:04.7]}
38... Kf5 {[%clk 0:00:17.8]} 39. Rh4 {[%clk 0:00:03]} 39... Be5 {[%clk 0:00:17]}
40. Ne7+ {[%clk 0:00:03.3]} 40... Ke6 {[%clk 0:00:17]} 41. Nd5 {[%clk
0:00:03.8]} 41... b5 {[%clk 0:00:15]} 42. cxb5 {[%clk 0:00:03]} 42... Kxd5
{[%clk 0:00:15.6]} 43. bxa6 {[%clk 0:00:04.5]} 43... Rb2+ {[%clk 0:00:15.5]} 44.
Ka1 {[%clk 0:00:02.9]} 44... Rb6+ {[%clk 0:00:15.9]} 0-1

[Event "*** Titled Tuesday Blitz"]
[Site "Chess.com"]
[Date "2019.07.02"]
[Round "8"]
[White "Barrelius"]
[Black "Gabix_94"]
[Result "1-0"]
[WhiteElo "2651"]
[BlackElo "2673"]
[TimeControl "180+2"]
[EndTime "14:49:44 PDT"]
[Termination "Barrelius won by checkmate"]

1. Nf3 {[%clk 0:03:01.9]} 1... c5 {[%clk 0:03:00.1]} 2. c4 {[%clk 0:03:03.1]}
2... Nc6 {[%clk 0:02:59.8]} 3. Nc3 {[%clk 0:03:04.4]} 3... Nf6 {[%clk
0:03:01.2]} 4. g3 {[%clk 0:03:04.3]} 4... g6 {[%clk 0:03:02.2]} 5. Bg2 {[%clk
0:03:05.4]} 5... Bg7 {[%clk 0:03:03.8]} 6. O-O {[%clk 0:03:06.6]} 6... O-O
{[%clk 0:03:05.1]} 7. d4 {[%clk 0:03:07.9]} 7... cxd4 {[%clk 0:03:07]} 8. Nxd4
{[%clk 0:03:09.6]} 8... Qa5 {[%clk 0:03:08.7]} 9. e3 {[%clk 0:03:05.1]} 9... d6
{[%clk 0:03:05.4]} 10. Rb1 {[%clk 0:02:55.5]} 10... Nxd4 {[%clk 0:03:01.9]} 11.
exd4 {[%clk 0:02:54.1]} 11... Bf5 {[%clk 0:03:02.4]} 12. Ra1 {[%clk 0:02:55.4]}
12... Rac8 {[%clk 0:03:02.9]} 13. Qb3 {[%clk 0:02:52]} 13... Bd3 {[%clk
0:02:32.2]} 14. Rd1 {[%clk 0:02:48.3]} 14... Bxc4 {[%clk 0:02:33]} 15. Qxb7
{[%clk 0:02:48.2]} 15... Rc7 {[%clk 0:02:30.3]} 16. Qf3 {[%clk 0:02:49.2]} 16...
Rb8 {[%clk 0:02:26.4]} 17. Ne4 {[%clk 0:02:17.3]} 17... Nxe4 {[%clk 0:01:45.6]}
18. Qxe4 {[%clk 0:02:19.2]} 18... Be6 {[%clk 0:01:47.2]} 19. Bd2 {[%clk
0:02:14.7]} 19... Qb6 {[%clk 0:01:44.9]} 20. Bc3 {[%clk 0:02:15.4]} 20... a5
{[%clk 0:01:40.2]} 21. Qe2 {[%clk 0:01:54]} 21... Bf5 {[%clk 0:01:39.3]} 22. a3
{[%clk 0:01:43.4]} 22... a4 {[%clk 0:01:33.1]} 23. Rd2 {[%clk 0:01:41.3]} 23...
Bh6 {[%clk 0:01:30.9]} 24. Rdd1 {[%clk 0:01:37.9]} 24... Bg7 {[%clk 0:01:32]}
25. Rd2 {[%clk 0:01:38.7]} 25... Qb3 {[%clk 0:01:33.3]} 26. g4 {[%clk
0:01:30.6]} 26... Bc8 {[%clk 0:01:28.5]} 27. Re1 {[%clk 0:01:22.5]} 27... Bh6
{[%clk 0:01:27.1]} 28. Rdd1 {[%clk 0:01:23.5]} 28... Bg5 {[%clk 0:01:25.3]} 29.
h3 {[%clk 0:01:12.8]} 29... Bf6 {[%clk 0:01:24.8]} 30. Be4 {[%clk 0:01:05.5]}
30... h6 {[%clk 0:01:22]} 31. Bc2 {[%clk 0:01:05.3]} 31... Qb7 {[%clk
0:01:12.8]} 32. Bxa4 {[%clk 0:01:03.2]} 32... Qa7 {[%clk 0:01:08.1]} 33. Bc2
{[%clk 0:00:59.9]} 33... Ba6 {[%clk 0:01:07.8]} 34. Bd3 {[%clk 0:00:59.6]} 34...
Bb7 {[%clk 0:01:09.2]} 35. Be4 {[%clk 0:00:54.9]} 35... Ba6 {[%clk 0:01:10.2]}
36. Qf3 {[%clk 0:00:56.1]} 36... Kg7 {[%clk 0:01:10.3]} 37. Kg2 {[%clk
0:00:55.4]} 37... e6 {[%clk 0:01:08.6]} 38. Kg3 {[%clk 0:00:53.8]} 38... d5
{[%clk 0:01:09.8]} 39. Bb1 {[%clk 0:00:53.1]} 39... Rb3 {[%clk 0:01:09.7]} 40.
Re3 {[%clk 0:00:48.6]} 40... Qb8 {[%clk 0:01:07.8]} 41. Kg2 {[%clk 0:00:48.2]}
41... Bg5 {[%clk 0:01:05.3]} 42. Ree1 {[%clk 0:00:45.2]} 42... Qb6 {[%clk
0:01:06.2]} 43. Qg3 {[%clk 0:00:41.5]} 43... Bf6 {[%clk 0:00:58.9]} 44. h4
{[%clk 0:00:41.5]} 44... Be7 {[%clk 0:00:56.9]} 45. g5 {[%clk 0:00:41.9]} 45...
h5 {[%clk 0:00:55.8]} 46. Qe5+ {[%clk 0:00:41.2]} 46... Kg8 {[%clk 0:00:56.4]}
47. Bc2 {[%clk 0:00:23.7]} 47... Rbxc3 {[%clk 0:00:54.9]} 48. bxc3 {[%clk
0:00:25.6]} 48... Rxc3 {[%clk 0:00:56.6]} 49. Bb1 {[%clk 0:00:24]} 49... Bd6
{[%clk 0:00:57.4]} 50. Qf6 {[%clk 0:00:23.2]} 50... Bc8 {[%clk 0:00:56.2]} 51.
Bxg6 {[%clk 0:00:23.1]} 51... fxg6 {[%clk 0:00:57]} 52. Qxg6+ {[%clk 0:00:24.6]}
52... Kf8 {[%clk 0:00:58.9]} 53. Qf6+ {[%clk 0:00:22.8]} 53... Ke8 {[%clk
0:00:59.2]} 54. g6 {[%clk 0:00:21.6]} 54... Qb3 {[%clk 0:00:55.9]} 55. Rxe6+
{[%clk 0:00:15.2]} 55... Bxe6 {[%clk 0:00:56.4]} 56. Qxe6+ {[%clk 0:00:17.1]}
56... Kf8 {[%clk 0:00:56.6]} 57. Qf7# {[%clk 0:00:17.8]} 1-0

[Event "*** Titled Tuesday Blitz"]
[Site "Chess.com"]
[Date "2019.07.02"]
[Round "8"]
[White "KamilPlichta"]
[Black "tunadrol"]
[Result "1/2-1/2"]
[WhiteElo "2789"]
[BlackElo "2464"]
[TimeControl "180+2"]
[EndTime "14:49:52 PDT"]
[Termination "Game drawn by repetition"]

1. d4 {[%clk 0:03:01.9]} 1... Nf6 {[%clk 0:03:01]} 2. Bg5 {[%clk 0:03:03.1]}
2... g6 {[%clk 0:03:01.8]} 3. Bxf6 {[%clk 0:03:04.2]} 3... exf6 {[%clk
0:03:03.7]} 4. e3 {[%clk 0:03:05.9]} 4... d5 {[%clk 0:03:05.1]} 5. g3 {[%clk
0:03:06.7]} 5... Bg7 {[%clk 0:03:05.9]} 6. Bg2 {[%clk 0:03:08.1]} 6... O-O
{[%clk 0:03:07.4]} 7. Ne2 {[%clk 0:03:09.4]} 7... c6 {[%clk 0:03:06.6]} 8. O-O
{[%clk 0:03:09.6]} 8... Nd7 {[%clk 0:03:06.6]} 9. b3 {[%clk 0:03:10.3]} 9... f5
{[%clk 0:03:07.6]} 10. c4 {[%clk 0:03:11.2]} 10... Nf6 {[%clk 0:03:08.8]} 11.
Nbc3 {[%clk 0:03:11.4]} 11... Ne4 {[%clk 0:03:07.8]} 12. Qd3 {[%clk 0:03:10.9]}
12... Be6 {[%clk 0:03:06.8]} 13. Rac1 {[%clk 0:03:07.4]} 13... Qa5 {[%clk
0:03:05.8]} 14. cxd5 {[%clk 0:03:04.5]} 14... cxd5 {[%clk 0:02:54.8]} 15. Qb5
{[%clk 0:03:04.2]} 15... Qxb5 {[%clk 0:02:38.6]} 16. Nxb5 {[%clk 0:03:04.4]}
16... a6 {[%clk 0:02:39.5]} 17. Nc7 {[%clk 0:02:53.9]} 17... Rac8 {[%clk
0:02:37.2]} 18. Nf4 {[%clk 0:02:51.2]} 18... Rfd8 {[%clk 0:01:26.1]} 19. Nfxe6
{[%clk 0:02:47.4]} 19... fxe6 {[%clk 0:01:24.9]} 20. Nxe6 {[%clk 0:02:48.2]}
20... Re8 {[%clk 0:01:24.4]} 21. Nf4 {[%clk 0:02:38.5]} 21... Rcd8 {[%clk
0:01:14.4]} 22. Rc7 {[%clk 0:02:36.1]} 22... b5 {[%clk 0:01:15.8]} 23. Rfc1
{[%clk 0:02:33.6]} 23... Bh6 {[%clk 0:01:11.9]} 24. Ra7 {[%clk 0:02:26.9]} 24...
Bxf4 {[%clk 0:01:10]} 25. gxf4 {[%clk 0:02:25]} 25... Ra8 {[%clk 0:01:09.6]} 26.
Rxa8 {[%clk 0:02:22.6]} 26... Rxa8 {[%clk 0:01:10.2]} 27. Rc5 {[%clk 0:02:17.4]}
27... Rd8 {[%clk 0:01:04.6]} 28. Rc6 {[%clk 0:02:18.1]} 28... a5 {[%clk
0:01:03.4]} 29. Bxe4 {[%clk 0:02:11]} 29... dxe4 {[%clk 0:00:53.5]} 30. Rc5
{[%clk 0:02:12.8]} 30... Rb8 {[%clk 0:00:51.7]} 31. a3 {[%clk 0:02:13.8]} 31...
b4 {[%clk 0:00:47.9]} 32. a4 {[%clk 0:02:14.3]} 32... Ra8 {[%clk 0:00:47.6]} 33.
Kg2 {[%clk 0:02:15.2]} 33... Ra6 {[%clk 0:00:45.9]} 34. f3 {[%clk 0:02:16]}
34... exf3+ {[%clk 0:00:44.3]} 35. Kxf3 {[%clk 0:02:17.1]} 35... Kf7 {[%clk
0:00:44.5]} 36. Rc7+ {[%clk 0:02:17.3]} 36... Ke6 {[%clk 0:00:42.9]} 37. Rxh7
{[%clk 0:02:18.3]} 37... Rc6 {[%clk 0:00:42.1]} 38. Ra7 {[%clk 0:02:18.2]} 38...
Rc3 {[%clk 0:00:36.3]} 39. Ra6+ {[%clk 0:02:19]} 39... Kf7 {[%clk 0:00:34]} 40.
Rxa5 {[%clk 0:02:20.2]} 40... Rxb3 {[%clk 0:00:31.8]} 41. Rb5 {[%clk 0:02:21.2]}
41... Rb2 {[%clk 0:00:30.7]} 42. h4 {[%clk 0:02:19.1]} 42... b3 {[%clk 0:00:32]}
43. a5 {[%clk 0:02:14.8]} 43... Ra2 {[%clk 0:00:30.4]} 44. Rxb3 {[%clk 0:02:14]}
44... Rxa5 {[%clk 0:00:30.3]} 45. Rb7+ {[%clk 0:02:15.3]} 45... Kf6 {[%clk
0:00:27.7]} 46. Rb6+ {[%clk 0:02:16.5]} 46... Kf7 {[%clk 0:00:28.5]} 47. h5
{[%clk 0:02:15.9]} 47... gxh5 {[%clk 0:00:26.6]} 48. Rh6 {[%clk 0:02:16.7]}
48... Ke7 {[%clk 0:00:22.3]} 49. Rxh5 {[%clk 0:02:17.5]} 49... Ke6 {[%clk
0:00:22.1]} 50. Rh6+ {[%clk 0:02:17.8]} 50... Kf7 {[%clk 0:00:22.2]} 51. Rc6
{[%clk 0:02:13.8]} 51... Ra3 {[%clk 0:00:18.9]} 52. Rc5 {[%clk 0:01:59.8]} 52...
Kf6 {[%clk 0:00:19.3]} 53. Re5 {[%clk 0:02:01.2]} 53... Ra2 {[%clk 0:00:15.9]}
54. d5 {[%clk 0:01:51.8]} 54... Rd2 {[%clk 0:00:14.9]} 55. Re6+ {[%clk
0:01:52.9]} 55... Kf7 {[%clk 0:00:14.4]} 56. Re5 {[%clk 0:01:44.8]} 56... Kf6
{[%clk 0:00:15.5]} 57. Kg3 {[%clk 0:01:46.4]} 57... Kg6 {[%clk 0:00:14.1]} 58.
Kf3 {[%clk 0:00:47.5]} 58... Kf6 {[%clk 0:00:14.6]} 1/2-1/2

[Event "*** Titled Tuesday Blitz"]
[Site "Chess.com"]
[Date "2019.07.02"]
[Round "8"]
[White "pedromartinez91"]
[Black "m3alam"]
[Result "1-0"]
[WhiteElo "2439"]
[BlackElo "2361"]
[TimeControl "180+2"]
[EndTime "14:50:00 PDT"]
[Termination "pedromartinez91 won by resignation"]

1. e4 {[%clk 0:03:01.9]} 1... c6 {[%clk 0:01:47.5]} 2. c4 {[%clk 0:02:39.6]}
2... d5 {[%clk 0:01:49.4]} 3. cxd5 {[%clk 0:02:41.5]} 3... cxd5 {[%clk
0:01:49.9]} 4. exd5 {[%clk 0:02:43.4]} 4... Nf6 {[%clk 0:01:51.5]} 5. Qa4+
{[%clk 0:02:38.9]} 5... Nbd7 {[%clk 0:01:52.4]} 6. Nc3 {[%clk 0:02:36.7]} 6...
g6 {[%clk 0:01:53.6]} 7. Bc4 {[%clk 0:02:37.5]} 7... Bg7 {[%clk 0:01:54.9]} 8.
d3 {[%clk 0:02:39.1]} 8... O-O {[%clk 0:01:56.3]} 9. Nf3 {[%clk 0:02:40.7]} 9...
Nb6 {[%clk 0:01:56.9]} 10. Qb3 {[%clk 0:02:41.7]} 10... Bg4 {[%clk 0:01:57.2]}
11. Be3 {[%clk 0:02:39.9]} 11... Bxf3 {[%clk 0:01:57.9]} 12. gxf3 {[%clk
0:02:41.8]} 12... Rc8 {[%clk 0:01:55.1]} 13. a4 {[%clk 0:02:38.6]} 13... Qd6
{[%clk 0:01:52.9]} 14. a5 {[%clk 0:02:36.7]} 14... Nxc4 {[%clk 0:01:53.1]} 15.
dxc4 {[%clk 0:02:38.6]} 15... e6 {[%clk 0:01:53.7]} 16. Ne4 {[%clk 0:02:34.7]}
16... Qa6 {[%clk 0:01:43.4]} 17. Nc5 {[%clk 0:02:23]} 17... Qd6 {[%clk
0:01:37.5]} 18. Nxb7 {[%clk 0:02:23.8]} 18... Qc7 {[%clk 0:01:36.4]} 19. d6
{[%clk 0:02:22.7]} 19... Qc6 {[%clk 0:01:37.5]} 20. a6 {[%clk 0:02:06.5]} 20...
Qxf3 {[%clk 0:01:36.8]} 21. Rg1 {[%clk 0:02:06.1]} 21... Ne4 {[%clk 0:01:36.2]}
22. d7 {[%clk 0:02:04.7]} 22... Rb8 {[%clk 0:01:35.7]} 23. Rg3 {[%clk
0:02:00.5]} 23... Qh1+ {[%clk 0:01:35.2]} 24. Ke2 {[%clk 0:02:00.6]} 24... Qxa1
{[%clk 0:01:35.1]} 25. Bxa7 {[%clk 0:02:01.6]} 25... Qxa6 {[%clk 0:01:34.9]} 26.
Bxb8 {[%clk 0:02:02.6]} 26... Rxb8 {[%clk 0:01:33.1]} 27. d8=Q+ {[%clk
0:01:43.9]} 27... Rxd8 {[%clk 0:01:31.4]} 28. Nxd8 {[%clk 0:01:45.8]} 28...
Nxg3+ {[%clk 0:01:32.3]} 29. hxg3 {[%clk 0:01:47.7]} 29... Qd6 {[%clk
0:01:14.6]} 30. Nb7 {[%clk 0:01:37]} 30... Qe5+ {[%clk 0:01:15]} 31. Kd3 {[%clk
0:01:35.9]} 31... Qxb2 {[%clk 0:01:15.5]} 32. Qxb2 {[%clk 0:01:36.4]} 32... Bxb2
{[%clk 0:01:17.4]} 33. c5 {[%clk 0:01:38.3]} 33... Kf8 {[%clk 0:01:18.9]} 34.
Kc2 {[%clk 0:01:21.8]} 34... Bd4 {[%clk 0:01:18.4]} 35. f3 {[%clk 0:01:22.9]}
35... Ke8 {[%clk 0:01:16.2]} 36. Kd3 {[%clk 0:01:24.4]} 36... Bf2 {[%clk
0:01:16.4]} 37. g4 {[%clk 0:01:23.5]} 37... h5 {[%clk 0:01:16.8]} 38. gxh5
{[%clk 0:01:24.1]} 38... gxh5 {[%clk 0:01:17.2]} 39. c6 {[%clk 0:01:25.4]} 39...
h4 {[%clk 0:01:16]} 40. Ke2 {[%clk 0:01:25.9]} 40... Bb6 {[%clk 0:01:17.3]} 41.
f4 {[%clk 0:01:24.3]} 41... h3 {[%clk 0:01:18.1]} 42. Kf3 {[%clk 0:01:25.6]}
42... h2 {[%clk 0:01:12.5]} 43. Kg2 {[%clk 0:01:25.1]} 43... Bc7 {[%clk
0:01:13.8]} 44. Kxh2 {[%clk 0:01:26.2]} 44... Bxf4+ {[%clk 0:01:14.7]} 45. Kg2
{[%clk 0:01:27.8]} 45... Ke7 {[%clk 0:01:14.7]} 46. Kf3 {[%clk 0:01:29.4]} 46...
Bc7 {[%clk 0:01:16]} 47. Ke4 {[%clk 0:01:30.6]} 47... f5+ {[%clk 0:01:16.7]} 48.
Kd4 {[%clk 0:01:32.2]} 48... Kf6 {[%clk 0:01:17.5]} 49. Nc5 {[%clk 0:01:30.5]}
49... e5+ {[%clk 0:01:18.1]} 50. Kd5 {[%clk 0:01:31.4]} 50... f4 {[%clk
0:01:13]} 51. Na6 {[%clk 0:01:31.5]} 51... Bb6 {[%clk 0:01:09.2]} 52. Ke4 {[%clk
0:01:29.8]} 52... Ke6 {[%clk 0:01:05.3]} 53. Nb4 {[%clk 0:01:21.3]} 53... Kd6
{[%clk 0:01:04.2]} 54. Nd5 {[%clk 0:01:21.8]} 54... Bd4 {[%clk 0:01:04.1]} 55.
c7 {[%clk 0:01:21.6]} 55... Kd7 {[%clk 0:01:04.3]} 56. Kd3 {[%clk 0:01:18.5]}
56... Kc8 {[%clk 0:01:00.7]} 57. Kc4 {[%clk 0:01:17.4]} 57... f3 {[%clk
0:01:00.5]} 58. Kb5 {[%clk 0:01:18.4]} 58... f2 {[%clk 0:01:01.1]} 59. Kc6
{[%clk 0:01:19.4]} 59... Bc5 {[%clk 0:00:55.6]} 60. Kxc5 {[%clk 0:01:15.5]}
60... f1=Q {[%clk 0:00:55.3]} 61. Kd6 {[%clk 0:01:16.5]} 61... Qf8+ {[%clk
0:00:52.9]} 62. Kc6 {[%clk 0:01:14]} 62... Qe8+ {[%clk 0:00:51.6]} 63. Kd6
{[%clk 0:01:12.6]} 63... e4 {[%clk 0:00:51.9]} 64. Nf6 {[%clk 0:01:03.5]} 64...
Qd7+ {[%clk 0:00:48.7]} 65. Nxd7 {[%clk 0:01:02.6]} 65... e3 {[%clk 0:00:48.5]}
66. Nb6+ {[%clk 0:01:03.7]} 66... Kb7 {[%clk 0:00:49.9]} 67. c8=Q+ {[%clk
0:01:04.7]} 67... Kxb6 {[%clk 0:00:51.8]} 68. Qe6 {[%clk 0:01:04.8]} 1-0

[Event "*** Titled Tuesday Blitz"]
[Site "Chess.com"]
[Date "2019.07.02"]
[Round "8"]
[White "IMRosen"]
[Black "Infernal_XaM"]
[Result "1-0"]
[WhiteElo "2614"]
[BlackElo "2858"]
[TimeControl "180+2"]
[EndTime "14:50:02 PDT"]
[Termination "IMRosen won by resignation"]

1. d4 {[%clk 0:03:01.9]} 1... e6 {[%clk 0:03:00.8]} 2. Bf4 {[%clk 0:03:03.3]}
2... Nf6 {[%clk 0:03:00.3]} 3. e3 {[%clk 0:03:04.4]} 3... c5 {[%clk 0:03:00.4]}
4. Nf3 {[%clk 0:03:05.8]} 4... Nc6 {[%clk 0:03:00.1]} 5. Nc3 {[%clk 0:03:07.2]}
5... Nh5 {[%clk 0:02:48.4]} 6. d5 {[%clk 0:02:55.9]} 6... Nxf4 {[%clk 0:02:49]}
7. exf4 {[%clk 0:02:53]} 7... Nb4 {[%clk 0:02:48.4]} 8. Bc4 {[%clk 0:02:48.5]}
8... Bd6 {[%clk 0:02:44.8]} 9. a3 {[%clk 0:02:42.5]} 9... Na6 {[%clk 0:02:43.5]}
10. dxe6 {[%clk 0:02:34.4]} 10... dxe6 {[%clk 0:02:44.5]} 11. Bb5+ {[%clk
0:02:36]} 11... Ke7 {[%clk 0:02:45.5]} 12. Qe2 {[%clk 0:02:30.1]} 12... Bxf4
{[%clk 0:02:39.1]} 13. Rd1 {[%clk 0:02:30.5]} 13... Qa5 {[%clk 0:02:39.4]} 14.
b4 {[%clk 0:02:16]} 14... cxb4 {[%clk 0:02:39.8]} 15. Nd5+ {[%clk 0:02:16.2]}
15... Kf8 {[%clk 0:02:39.9]} 16. Nxf4 {[%clk 0:02:11.9]} 16... b3+ {[%clk
0:02:41.2]} 17. Qd2 {[%clk 0:01:51.5]} 17... Qxd2+ {[%clk 0:02:22.1]} 18. Rxd2
{[%clk 0:01:51]} 18... bxc2 {[%clk 0:02:04.4]} 19. Ke2 {[%clk 0:01:35.5]} 19...
Ke7 {[%clk 0:02:00]} 20. Rc1 {[%clk 0:01:28.8]} 20... b6 {[%clk 0:01:54.7]} 21.
Rcxc2 {[%clk 0:01:26]} 21... Nc5 {[%clk 0:01:55.4]} 22. Ne5 {[%clk 0:01:22.1]}
22... Kf6 {[%clk 0:01:46.1]} 23. Nfd3 {[%clk 0:01:00.3]} 23... Nb3 {[%clk
0:01:44.2]} 24. Rc7 {[%clk 0:00:39.2]} 24... Rf8 {[%clk 0:01:38.8]} 25. Bc6
{[%clk 0:00:30.5]} 25... Nd4+ {[%clk 0:01:33.4]} 26. Kd1 {[%clk 0:00:28.3]}
26... Nxc6 {[%clk 0:01:33.4]} 27. Rxc6 {[%clk 0:00:26.9]} 27... g5 {[%clk
0:01:03.6]} 28. g3 {[%clk 0:00:27]} 28... Kg7 {[%clk 0:00:59.4]} 29. Rc7 {[%clk
0:00:27]} 29... Ba6 {[%clk 0:00:57.7]} 30. Nb4 {[%clk 0:00:27.9]} 30... Bb5
{[%clk 0:00:58.4]} 31. Nbc6 {[%clk 0:00:22.9]} 31... Bxc6 {[%clk 0:00:56.2]} 32.
Nxc6 {[%clk 0:00:21.2]} 32... Rac8 {[%clk 0:00:41.7]} 33. Rdd7 {[%clk
0:00:19.7]} 33... Rxc7 {[%clk 0:00:42.2]} 34. Rxc7 {[%clk 0:00:21.6]} 34... a6
{[%clk 0:00:39.7]} 35. Ke2 {[%clk 0:00:19.8]} 35... Kf6 {[%clk 0:00:36.3]} 36.
Ke3 {[%clk 0:00:17.8]} 36... Ra8 {[%clk 0:00:30.4]} 37. Rb7 {[%clk 0:00:16.9]}
37... b5 {[%clk 0:00:30.4]} 38. f4 {[%clk 0:00:18.6]} 38... gxf4+ {[%clk
0:00:30.9]} 39. gxf4 {[%clk 0:00:20.5]} 39... Rf8 {[%clk 0:00:11.7]} 40. Ne5
{[%clk 0:00:20.5]} 40... Kg7 {[%clk 0:00:12.6]} 41. Ra7 {[%clk 0:00:21.6]} 41...
h5 {[%clk 0:00:11.5]} 42. Rxa6 {[%clk 0:00:21.8]} 42... f6 {[%clk 0:00:12.8]}
43. Ra7+ {[%clk 0:00:22.2]} 43... Kh6 {[%clk 0:00:13.1]} 44. Nf3 {[%clk
0:00:19.8]} 44... Rc8 {[%clk 0:00:13]} 45. Nd4 {[%clk 0:00:19]} 45... Rc3+
{[%clk 0:00:10.6]} 46. Ke4 {[%clk 0:00:15.7]} 46... Rc4 {[%clk 0:00:10]} 47. Kd3
{[%clk 0:00:15.7]} 47... Rc1 {[%clk 0:00:05.9]} 48. Nxe6 {[%clk 0:00:14]} 48...
Rh1 {[%clk 0:00:07]} 49. Ke4 {[%clk 0:00:14.5]} 49... Rxh2 {[%clk 0:00:06.3]}
50. Kf5 {[%clk 0:00:15.8]} 50... Re2 {[%clk 0:00:05.8]} 51. Ra8 {[%clk 0:00:16]}
51... Kh7 {[%clk 0:00:06.3]} 52. Kxf6 {[%clk 0:00:15.5]} 1-0